fUST/lending_fUST_20250627
["ID","MTS","AMOUNT","RATE_DAILY","PERIOD"]
[367928855,1750969832620,-573.924,0.00021521,2]
[367928857,1750969832629,-406.0,0.00021521,2]
[367928859,1750969832639,-151.3462781,0.0002153,2]
[367928860,1750969832648,-2171.97637421,0.0002153,2]
[367928861,1750969832657,-500.0,0.0002153,2]
[367928862,1750969832666,-500.0,0.0002153,2]
[367928864,1750969832675,-500.0,0.0002153,2]
[367928866,1750969832685,-500.0,0.0002153,2]
[367928867,1750969832694,-500.0,0.0002153,2]
[367928868,1750969832703,-500.0,0.0002153,2]
[367928869,1750969832712,-500.0,0.0002153,2]
[367928870,1750969832721,-500.0,0.0002153,2]
[367928871,1750969832731,-500.0,0.0002153,2]
[367928872,1750969832741,-500.0,0.0002153,2]
[367928873,1750969832750,-500.0,0.0002153,2]
[367928874,1750969832760,-500.0,0.0002153,2]
[367928875,1750969832769,-800.0,0.00021538,2]
[367928876,1750969832779,-1000.0,0.00021542,2]
[367928877,1750969832788,-572.15126314,0.00021542,2]
[367928879,1750969832797,-30133.65237192,0.00021543,2]
[367928880,1750969832807,-279.79980229,0.00021543,2]
[367928882,1750969832816,-910.893899,0.0002156,4]
[367928883,1750969832825,-800.0,0.00021587,2]
[367928884,1750969832834,-603.3048026,0.00021593,2]
[367928885,1750969832843,-800.0,0.00021619,2]
[367928886,1750969832852,-279.79980225,0.00021632,2]
[367928887,1750969832861,-884.34,0.00021633,3]
[367928888,1750969832870,-198.92,0.00021633,3]
[367928889,1750969832880,-596.78,0.00021633,3]
[367928890,1750969832890,-846.92323443,0.00021633,10]
[367928891,1750969832899,-504.70019226,0.00021643,2]
[367928892,1750969832910,-460.0,0.00021643,2]
[367928893,1750969832919,-460.0,0.00021643,2]
[367928894,1750969832929,-348.27371383,0.00021643,2]
[367928895,1750969832938,-460.0,0.00021643,2]
[367928896,1750969832948,-151.0,0.00021643,2]
[367928897,1750969832957,-460.0,0.00021643,2]
[367928898,1750969832967,-460.0,0.00021643,2]
[367928899,1750969832976,-460.0,0.00021643,2]
[367928900,1750969832987,-460.44441417,0.00021643,2]
[367928901,1750969832996,-460.0,0.00021643,2]
[367928902,1750969833005,-362.99063769,0.00021643,2]
[367928903,1750969833026,-460.0,0.00021643,2]
[367928904,1750969833036,-460.0,0.00021643,2]
[367928905,1750969833047,-460.0,0.00021643,2]
[367928906,1750969833057,-460.0,0.00021643,2]
[367928907,1750969833067,-460.0,0.00021643,2]
[367928908,1750969833077,-460.0,0.00021643,2]
[367928909,1750969833087,-572.99343343,0.00021643,2]
[367928910,1750969833098,-460.0,0.00021643,2]
[367928911,1750969833108,-458.16850373,0.00021643,2]
[367928912,1750969833119,-151.0,0.00021643,2]
[367928913,1750969833128,-151.0,0.00021643,2]
[367928914,1750969833138,-262.57666,0.00021643,2]
[367928915,1750969833148,-460.0,0.00021643,2]
[367928916,1750969833158,-460.0,0.00021643,2]
[367928917,1750969833168,-460.0,0.00021643,2]
[367928918,1750969833178,-151.0,0.00021643,2]
[367928919,1750969833188,-460.0,0.00021643,2]
[367928920,1750969833199,-460.0,0.00021643,2]
[367928921,1750969833210,-460.0,0.00021643,2]
[367928922,1750969833220,-460.0,0.00021643,2]
[367928923,1750969833230,-460.0,0.00021643,2]
[367928924,1750969833239,-460.0,0.00021643,2]
[367928925,1750969833250,-460.0,0.00021643,2]
[367928926,1750969833259,-460.0,0.00021643,2]
[367928927,1750969833270,-434.55644681,0.00021643,2]
[367928928,1750969833280,-359.56161514,0.00021643,2]
[367928929,1750969833290,-460.0,0.00021643,2]
[367928930,1750969833300,-279.56492929,0.00021643,2]
[367928931,1750969833310,-460.0,0.00021643,2]
[367928932,1750969833320,-460.0,0.00021643,2]
[367928933,1750969833330,-460.0,0.00021643,2]
[367928934,1750969833340,-460.0,0.00021643,2]
[367928935,1750969833350,-460.0,0.00021643,2]
[367928936,1750969833360,-183.28023209,0.00021643,2]
[367928937,1750969833370,-324.12749066,0.00021643,2]
[367928938,1750969833380,-460.0,0.00021643,2]
[367928939,1750969833390,-460.0,0.00021643,2]
[367928940,1750969833399,-151.0,0.00021643,2]
[367928941,1750969833409,-460.0,0.00021643,2]
[367928942,1750969833419,-460.0,0.00021643,2]
[367928943,1750969833429,-463.92103673,0.00021643,2]
[367928944,1750969833439,-460.0,0.00021643,2]
[367928945,1750969833449,-460.0,0.00021643,2]
[367928946,1750969833459,-460.0,0.00021643,2]
[367928947,1750969833468,-460.0,0.00021643,2]
[367928948,1750969833478,-460.0,0.00021643,2]
[367928949,1750969833488,-460.0,0.00021643,2]
[367928950,1750969833498,-460.0,0.00021643,2]
[367928951,1750969833507,-460.0,0.00021643,2]
[367928952,1750969833517,-460.0,0.00021643,2]
[367928953,1750969833526,-460.0,0.00021643,2]
[367928954,1750969833536,-460.0,0.00021643,2]
[367928955,1750969833545,-460.0,0.00021643,2]
[367928956,1750969833555,-460.0,0.00021643,2]
[367928957,1750969833565,-460.0,0.00021643,2]
[367928958,1750969833575,-460.0,0.00021643,2]
[367928959,1750969833584,-460.0,0.00021643,2]
[367928960,1750969833594,-460.0,0.00021643,2]
[367928961,1750969833604,-460.0,0.00021643,2]
[367928962,1750969833613,-460.0,0.00021643,2]
[367928963,1750969833624,-460.0,0.00021643,2]
[367928964,1750969833635,-460.0,0.00021643,2]
[367928965,1750969833645,-460.0,0.00021643,2]
[367928966,1750969833655,-460.0,0.00021643,2]
[367928967,1750969833664,-460.0,0.00021643,2]
[367928968,1750969833674,-460.0,0.00021643,2]
[367928969,1750969833684,-460.0,0.00021643,2]
[367928970,1750969833694,-460.0,0.00021643,2]
[367928971,1750969833703,-460.0,0.00021643,2]
[367928972,1750969833713,-460.0,0.00021643,2]
[367928973,1750969833724,-340.0,0.00021643,2]
[367928974,1750969833734,-460.0,0.00021643,2]
[367928975,1750969833744,-460.0,0.00021643,2]
[367928976,1750969833754,-460.0,0.00021643,2]
[367928977,1750969833763,-460.0,0.00021643,2]
[367928978,1750969833773,-167.32835206,0.00021643,2]
[367928979,1750969833783,-500.0,0.00021643,2]
[367928980,1750969833793,-377.89010797,0.00021643,2]
[367928981,1750969833803,-460.0,0.00021643,2]
[367928982,1750969833813,-522.45,0.00021643,2]
[367928983,1750969833822,-460.0,0.00021643,2]
[367928984,1750969833832,-460.0,0.00021643,2]
[367928985,1750969833842,-460.0,0.00021643,2]
[367928986,1750969833852,-460.0,0.00021643,2]
[367928987,1750969833861,-460.0,0.00021643,2]
[367928988,1750969833870,-403.02805715,0.00021643,2]
[367928989,1750969833880,-460.0,0.00021643,2]
[367928990,1750969833890,-460.0,0.00021643,2]
[367928991,1750969833900,-460.0,0.00021643,2]
[367928992,1750969833910,-460.0,0.00021643,2]
[367928993,1750969833919,-460.0,0.00021643,2]
[367928994,1750969833929,-460.0,0.00021643,2]
[367928995,1750969833939,-460.0,0.00021643,2]
[367928996,1750969833948,-460.0,0.00021643,2]
[367928997,1750969833958,-460.0,0.00021643,2]
[367928998,1750969833968,-460.0,0.00021643,2]
[367928999,1750969833977,-460.0,0.00021643,2]
[367929000,1750969833988,-158.311484,0.00021643,2]
[367929001,1750969833998,-158.311484,0.00021643,2]
[367929002,1750969834008,-158.311484,0.00021643,2]
[367929003,1750969834018,-460.0,0.00021643,2]
[367929004,1750969834028,-460.0,0.00021643,2]
[367929005,1750969834038,-460.0,0.00021643,2]
[367929006,1750969834047,-460.0,0.00021643,2]
[367929007,1750969834057,-158.311484,0.00021643,2]
[367929008,1750969834066,-158.311484,0.00021643,2]
[367929009,1750969834080,-158.311484,0.00021643,2]
[367929010,1750969834091,-460.0,0.00021643,2]
[367929011,1750969834100,-460.0,0.00021643,2]
[367929012,1750969834110,-463.03080676,0.00021643,2]
[367929013,1750969834121,-460.0,0.00021643,2]
[367929014,1750969834131,-460.0,0.00021643,2]
[367929015,1750969834140,-433.12726625,0.00021643,2]
[367929016,1750969834149,-460.0,0.00021643,2]
[367929017,1750969834159,-460.0,0.00021643,2]
[367929018,1750969834169,-1055.03,0.00021643,2]
[367929019,1750969834178,-432.50659476,0.00021643,2]
[367929020,1750969834188,-460.0,0.00021643,2]
[367929021,1750969834199,-460.0,0.00021643,2]
[367929022,1750969834212,-460.0,0.00021643,2]
[367929023,1750969834222,-460.0,0.00021643,2]
[367929024,1750969834231,-460.0,0.00021643,2]
[367929025,1750969834241,-819.09,0.00021643,2]
[367929026,1750969834251,-460.0,0.00021643,2]
[367929027,1750969834260,-465.81716504,0.00021643,2]
[367929028,1750969834270,-460.0,0.00021643,2]
[367929029,1750969834280,-460.0,0.00021643,2]
[367929030,1750969834290,-460.0,0.00021643,2]
[367929031,1750969834300,-460.0,0.00021643,2]
[367929032,1750969834310,-178.90351438,0.00021643,2]
[367929033,1750969834319,-460.0,0.00021643,2]
[367929034,1750969834328,-460.0,0.00021643,2]
[367929035,1750969834338,-460.0,0.00021643,2]
[367929036,1750969834347,-460.0,0.00021643,2]
[367929037,1750969834356,-460.0,0.00021643,2]
[367929038,1750969834365,-460.0,0.00021643,2]
[367929039,1750969834376,-460.0,0.00021643,2]
[367929040,1750969834385,-460.0,0.00021643,2]
[367929041,1750969834395,-460.0,0.00021643,2]
[367929042,1750969834404,-461.4846135,0.00021643,2]
[367929043,1750969834414,-460.0,0.00021643,2]
[367929044,1750969834423,-1332.1,0.00021643,2]
[367929045,1750969834433,-460.0,0.00021643,2]
[367929046,1750969834443,-460.0,0.00021643,2]
[367929047,1750969834452,-460.0,0.00021643,2]
[367929048,1750969834462,-460.0,0.00021643,2]
[367929049,1750969834472,-460.0,0.00021643,2]
[367929050,1750969834481,-460.0,0.00021643,2]
[367929051,1750969834491,-460.0,0.00021643,2]
[367929052,1750969834500,-659.96,0.00021643,2]
[367929053,1750969834510,-460.0,0.00021643,2]
[367929054,1750969834520,-460.0,0.00021643,2]
[367929055,1750969834530,-460.0,0.00021643,2]
[367929056,1750969834541,-460.0,0.00021643,2]
[367929057,1750969834550,-518.97,0.00021643,2]
[367929058,1750969834559,-460.0,0.00021643,2]
[367929059,1750969834568,-460.0,0.00021643,2]
[367929060,1750969834578,-646.18,0.00021643,2]
[367929061,1750969834587,-460.456614,0.00021643,2]
[367929062,1750969834596,-460.0,0.00021643,2]
[367929063,1750969834605,-792.66,0.00021643,2]
[367929064,1750969834615,-460.0,0.00021643,2]
[367929065,1750969834626,-460.0,0.00021643,2]
[367929066,1750969834635,-461.6612869,0.00021643,2]
[367929067,1750969834644,-460.0,0.00021643,2]
[367929068,1750969834654,-460.0,0.00021643,2]
[367929069,1750969834664,-460.0,0.00021643,2]
[367929070,1750969834673,-460.0,0.00021643,2]
[367929071,1750969834683,-462.14113955,0.00021643,2]
[367929072,1750969834692,-460.0,0.00021643,2]
[367929073,1750969834702,-460.0,0.00021643,2]
[367929074,1750969834712,-1001.25375367,0.00021643,2]
[367929075,1750969834721,-460.0,0.00021643,2]
[367929076,1750969834730,-460.0,0.00021643,2]
[367929077,1750969834740,-606.85596742,0.00021643,2]
[367929078,1750969834750,-465.00341615,0.00021643,2]
[367929079,1750969834760,-460.0,0.00021643,2]
[367929080,1750969834770,-460.0,0.00021643,2]
[367929081,1750969834780,-460.0,0.00021643,2]
[367929082,1750969834993,-460.0,0.00021643,2]
[367929083,1750969835005,-460.0,0.00021643,2]
[367929084,1750969835015,-390.01616677,0.00021643,2]
[367929085,1750969835025,-460.0,0.00021643,2]
[367929086,1750969835035,-460.0,0.00021643,2]
[367929087,1750969835044,-460.0,0.00021643,2]
[367929088,1750969835054,-460.0,0.00021643,2]
[367929089,1750969835064,-460.0,0.00021643,2]
[367929090,1750969835074,-460.0,0.00021643,2]
[367929091,1750969835084,-460.0,0.00021643,2]
[367929092,1750969835095,-500.0,0.00021643,2]
[367929093,1750969835106,-500.0,0.00021643,2]
[367929094,1750969835116,-412.95147472,0.00021643,2]
[367929095,1750969835126,-460.0,0.00021643,2]
[367929096,1750969835136,-460.0,0.00021643,2]
[367929097,1750969835146,-460.0,0.00021643,2]
[367929098,1750969835157,-460.0,0.00021643,2]
[367929099,1750969835166,-465.42270465,0.00021643,2]
[367929100,1750969835176,-460.0,0.00021643,2]
[367929101,1750969835185,-460.0,0.00021643,2]
[367929102,1750969835195,-500.85,0.00021643,2]
[367929103,1750969835208,-460.0,0.00021643,2]
[367929104,1750969835217,-460.0,0.00021643,2]
[367929105,1750969835227,-460.0,0.00021643,2]
[367929106,1750969835236,-460.0,0.00021643,2]
[367929107,1750969835245,-460.0,0.00021643,2]
[367929108,1750969835255,-460.0,0.00021643,2]
[367929109,1750969835265,-460.0,0.00021643,2]
[367929110,1750969835275,-460.0,0.00021643,2]
[367929111,1750969835284,-460.0,0.00021643,2]
[367929112,1750969835293,-460.0,0.00021643,2]
[367929113,1750969835303,-460.0,0.00021643,2]
[367929114,1750969835312,-460.0,0.00021643,2]
[367929115,1750969835321,-460.0,0.00021643,2]
[367929116,1750969835331,-460.0,0.00021643,2]
[367929117,1750969835340,-180.17242835,0.00021643,2]
[367929118,1750969835350,-527.33517307,0.00021643,2]
[367929119,1750969835359,-460.0,0.00021643,2]
[367929120,1750969835368,-531.8240613,0.00021643,2]
[367929121,1750969835378,-448.38069221,0.00021643,2]
[367929122,1750969835387,-460.0,0.00021643,2]
[367929123,1750969835396,-460.0,0.00021643,2]
[367929124,1750969835406,-460.0,0.00021643,2]
[367929125,1750969835415,-460.0,0.00021643,2]
[367929126,1750969835424,-460.0,0.00021643,2]
[367929127,1750969835433,-460.0,0.00021643,2]
[367929128,1750969835442,-460.0,0.00021643,2]
[367929129,1750969835451,-465.22992159,0.00021643,2]
[367929130,1750969835461,-460.0,0.00021643,2]
[367929131,1750969835470,-460.0,0.00021643,2]
[367929132,1750969835480,-460.0,0.00021643,2]
[367929133,1750969835489,-460.0,0.00021643,2]
[367929134,1750969835499,-460.0,0.00021643,2]
[367929135,1750969835509,-460.0,0.00021643,2]
[367929136,1750969835519,-549.73,0.00021643,2]
[367929137,1750969835528,-472.4070669,0.00021643,2]
[367929138,1750969835538,-460.0,0.00021643,2]
[367929139,1750969835547,-400.22030454,0.00021643,2]
[367929140,1750969835557,-460.60806225,0.00021643,2]
[367929141,1750969835566,-460.0,0.00021643,2]
[367929142,1750969835576,-460.0,0.00021643,2]
[367929143,1750969835585,-460.0,0.00021643,2]
[367929144,1750969835594,-460.0,0.00021643,2]
[367929145,1750969835605,-460.0,0.00021643,2]
[367929146,1750969835615,-500.0,0.00021643,2]
[367929147,1750969835626,-460.0,0.00021643,2]
[367929148,1750969835636,-465.1946172,0.00021643,2]
[367929149,1750969835645,-531.47,0.00021643,2]
[367929150,1750969835655,-460.0,0.00021643,2]
[367929151,1750969835665,-460.0,0.00021643,2]
[367929152,1750969835675,-460.0,0.00021643,2]
[367929153,1750969835684,-500.0,0.00021643,2]
[367929154,1750969835693,-460.0,0.00021643,2]
[367929155,1750969835703,-460.0,0.00021643,2]
[367929156,1750969835712,-920.62,0.00021643,2]
[367929157,1750969835721,-460.0,0.00021643,2]
[367929158,1750969835731,-460.0,0.00021643,2]
[367929159,1750969835740,-360.0,0.00021643,2]
[367929160,1750969835749,-746.06,0.00021643,2]
[367929161,1750969835759,-460.0,0.00021643,2]
[367929162,1750969835768,-460.0,0.00021643,2]
[367929163,1750969835778,-460.0,0.00021643,2]
[367929164,1750969835788,-460.0,0.00021643,2]
[367929165,1750969835801,-460.0,0.00021643,2]
[367929166,1750969835813,-460.0,0.00021643,2]
[367929167,1750969835824,-460.0,0.00021643,2]
[367929168,1750969835835,-460.0,0.00021643,2]
[367929169,1750969835846,-500.0,0.00021643,2]
[367929170,1750969835856,-500.0,0.00021643,2]
[367929171,1750969835865,-465.28,0.00021643,2]
[367929172,1750969835875,-263.04,0.00021643,2]
[367929173,1750969835884,-460.0,0.00021643,2]
[367929174,1750969835893,-460.0,0.00021643,2]
[367929175,1750969835902,-460.0,0.00021643,2]
[367929176,1750969835912,-397.98358521,0.00021643,2]
[367929177,1750969835921,-460.0,0.00021643,2]
[367929178,1750969835931,-460.0,0.00021643,2]
[367929179,1750969835942,-460.0,0.00021643,2]
[367929180,1750969835951,-591.62967957,0.00021643,2]
[367929181,1750969835961,-460.0,0.00021643,2]
[367929182,1750969835970,-460.0,0.00021643,2]
[367929183,1750969835979,-688.74,0.00021643,2]
[367929184,1750969835989,-433.38330224,0.00021643,2]
[367929185,1750969835999,-460.0,0.00021643,2]
[367929186,1750969836008,-460.0,0.00021643,2]
[367929187,1750969836017,-666.81,0.00021643,2]
[367929188,1750969836027,-460.0,0.00021643,2]
[367929189,1750969836036,-460.0,0.00021643,2]
[367929190,1750969836046,-460.0,0.00021643,2]
[367929191,1750969836055,-460.0,0.00021643,2]
[367929192,1750969836065,-460.0,0.00021643,2]
[367929193,1750969836074,-460.0,0.00021643,2]
[367929194,1750969836083,-1131.23,0.00021643,2]
[367929195,1750969836093,-460.0,0.00021643,2]
[367929196,1750969836102,-460.0,0.00021643,2]
[367929197,1750969836111,-460.0,0.00021643,2]
[367929198,1750969836121,-460.0,0.00021643,2]
[367929199,1750969836131,-430.0,0.00021643,2]
[367929200,1750969836141,-460.0,0.00021643,2]
[367929201,1750969836151,-460.0,0.00021643,2]
[367929202,1750969836159,-1591.11,0.00021643,2]
[367929203,1750969836169,-460.0,0.00021643,2]
[367929204,1750969836178,-460.0,0.00021643,2]
[367929205,1750969836187,-460.0,0.00021643,2]
[367929206,1750969836197,-483.15,0.00021643,2]
[367929207,1750969836210,-460.0,0.00021643,2]
[367929208,1750969836219,-460.0,0.00021643,2]
[367929209,1750969836229,-460.0,0.00021643,2]
[367929210,1750969836238,-460.0,0.00021643,2]
[367929211,1750969836248,-460.0,0.00021643,2]
[367929212,1750969836257,-432.75046842,0.00021643,2]
[367929213,1750969836266,-965.34,0.00021643,2]
[367929214,1750969836277,-492.81,0.00021643,2]
[367929215,1750969836288,-460.0,0.00021643,2]
[367929216,1750969836297,-460.0,0.00021643,2]
[367929217,1750969836306,-460.0,0.00021643,2]
[367929218,1750969836316,-2069.98,0.00021643,2]
[367929219,1750969836324,-460.0,0.00021643,2]
[367929220,1750969836334,-437.43692131,0.00021643,2]
[367929221,1750969836343,-460.0,0.00021643,2]
[367929222,1750969836352,-3909.78,0.00021643,2]
[367929223,1750969836362,-625.65,0.00021643,2]
[367929224,1750969836372,-460.0,0.00021643,2]
[367929225,1750969836382,-460.0,0.00021643,2]
[367929226,1750969836391,-312.27582355,0.00021643,2]
[367929227,1750969836400,-460.0,0.00021643,2]
[367929228,1750969836410,-737.98,0.00021643,2]
[367929229,1750969836419,-1377.85,0.00021643,2]
[367929230,1750969836428,-460.0,0.00021643,2]
[367929231,1750969836437,-460.0,0.00021643,2]
[367929232,1750969836447,-460.0,0.00021643,2]
[367929233,1750969836456,-460.0,0.00021643,2]
[367929234,1750969836465,-460.0,0.00021643,2]
[367929235,1750969836475,-475.76,0.00021643,2]
[367929236,1750969836484,-460.0,0.00021643,2]
[367929237,1750969836493,-460.0,0.00021643,2]
[367929238,1750969836502,-945.3,0.00021643,2]
[367929239,1750969836512,-923.99,0.00021643,2]
[367929240,1750969836521,-478.36,0.00021643,2]
[367929241,1750969836530,-770.35,0.00021643,2]
[367929242,1750969836539,-460.0,0.00021643,2]
[367929243,1750969836548,-460.0,0.00021643,2]
[367929244,1750969836557,-460.0,0.00021643,2]
[367929245,1750969836567,-460.0,0.00021643,2]
[367929246,1750969836576,-460.0,0.00021643,2]
[367929247,1750969836585,-460.0,0.00021643,2]
[367929248,1750969836595,-1076.86,0.00021643,2]
[367929249,1750969836604,-460.0,0.00021643,2]
[367929250,1750969836613,-460.0,0.00021643,2]
[367929251,1750969836623,-460.0,0.00021643,2]
[367929252,1750969836632,-460.0,0.00021643,2]
[367929253,1750969836641,-460.0,0.00021643,2]
[367929254,1750969836650,-460.0,0.00021643,2]
[367929255,1750969836660,-460.0,0.00021643,2]
[367929256,1750969836669,-2477.93,0.00021643,2]
[367929257,1750969836679,-460.0,0.00021643,2]
[367929258,1750969836688,-460.0,0.00021643,2]
[367929259,1750969836698,-460.0,0.00021643,2]
[367929260,1750969836707,-460.0,0.00021643,2]
[367929261,1750969836717,-1226.86,0.00021643,2]
[367929262,1750969836726,-460.0,0.00021643,2]
[367929263,1750969836736,-510.93,0.00021643,2]
[367929264,1750969836745,-276.86010762,0.00021643,2]
[367929265,1750969836800,-183.13989238,0.00021643,2]
[367929266,1750969836810,-472.15,0.00021643,2]
[367929267,1750969836819,-152.13051072,0.00021643,2]
[367929272,1750969838066,-280.44,0.000199,2]
[367929293,1750969840298,-249.993024,0.000199,2]
[367929300,1750969840355,-237.25816709,0.000199,2]
[367929301,1750969840364,-732.48216937,0.00020107,2]
[367929586,1750969843111,-35.20902147,0.00020107,2]
[367929588,1750969843120,-767.69119084,0.00020314,3]
[367929590,1750969843129,-767.69119084,0.00020521,3]
[367929592,1750969843139,-767.69119084,0.00020728,3]
[367929594,1750969843147,-767.69119084,0.00020934,4]
[367929596,1750969843157,-767.69119084,0.00021141,4]
[367929598,1750969843166,-767.69119084,0.00021348,5]
[367929600,1750969843175,-767.69119084,0.00021555,5]
[367929602,1750969843185,-226.5135245,0.00021643,2]
[367929604,1750969843194,-460.0,0.00021643,2]
[367929606,1750969843208,-460.0,0.00021643,2]
[367929608,1750969843217,-460.0,0.00021643,2]
[367929610,1750969843227,-2583.76,0.00021643,2]
[367929612,1750969843236,-460.0,0.00021643,2]
[367929614,1750969843245,-332.20568129,0.00021643,2]
[367929913,1750969846144,-127.79431871,0.00021643,2]
[367929915,1750969846154,-404.13003858,0.00021643,2]
[367929917,1750969846164,-460.0,0.00021643,2]
[367929919,1750969846173,-552.85,0.00021643,2]
[367929921,1750969846182,-524.57628383,0.00021643,2]
[367929922,1750969846192,-467.3,0.00021643,2]
[367929924,1750969846203,-460.0,0.00021643,2]
[367929926,1750969846213,-640.36,0.00021643,2]
[367929928,1750969846222,-500.0,0.00021643,2]
[367929930,1750969846232,-424.32007643,0.00021643,2]
[367929932,1750969846243,-500.0,0.00021643,2]
[367929934,1750969846253,-460.0,0.00021643,2]
[367929937,1750969846262,-558.06,0.00021643,2]
[367929939,1750969846273,-460.0,0.00021643,2]
[367929941,1750969846281,-457.23078389,0.00021643,2]
[367930299,1750969850038,165.508446,0.00013699,2]
[367931685,1750971038248,-150.0,0.00019543,2]
[367931687,1750971038258,-613.062,0.0002,2]
[367931692,1750971038303,-311.97676012,0.0002,2]
[367931704,1750971038411,-3379.54885823,0.0002,2]
[367931706,1750971038422,-187.5798374,0.00020429,2]
[367931708,1750971038431,-165.163626,0.00020529,2]
[367931710,1750971038441,-168.0,0.00021415,2]
[367931712,1750971038450,-160.0,0.0002151,2]
[367931714,1750971038459,-836.92866116,0.0002151,2]
[367931717,1750971038468,-214.88139422,0.00021516,2]
[367931719,1750971038477,-846.92323443,0.00021519,2]
[367931721,1750971038487,-207.4,0.0002153,2]
[367931723,1750971038496,-300.0,0.00021542,2]
[367931725,1750971038505,-300.0,0.00021542,2]
[367931727,1750971038514,-20089.10158128,0.00021543,2]
[367931729,1750971038524,-780.919729,0.0002156,4]
[367931731,1750971038533,-160.0,0.00021604,2]
[367931733,1750971038542,-160.0,0.00021606,2]
[367931735,1750971038551,-213.72380786,0.00021606,2]
[367931736,1750971038560,-230.24506774,0.00021606,2]
[367931738,1750971038569,-188.097,0.00021633,2]
[367931740,1750971038580,-397.84,0.00021633,3]
[367931742,1750971038591,-5306.17,0.00021633,10]
[367931744,1750971038601,-4421.81,0.00021633,10]
[367931746,1750971038610,-321.50189097,0.00021643,2]
[367931748,1750971038619,-3150.56362791,0.00021643,2]
[367931750,1750971038627,-460.0,0.00021643,2]
[367931752,1750971038636,-460.0,0.00021643,2]
[367931754,1750971038645,-460.0,0.00021643,2]
[367931756,1750971038653,-460.0,0.00021643,2]
[367931758,1750971038662,-460.0,0.00021643,2]
[367931760,1750971038673,-460.0,0.00021643,2]
[367931762,1750971038682,-460.0,0.00021643,2]
[367931764,1750971038691,-460.0,0.00021643,2]
[367931766,1750971038700,-460.0,0.00021643,2]
[367931768,1750971038709,-460.83879382,0.00021643,2]
[367931770,1750971038718,-460.0,0.00021643,2]
[367931772,1750971038728,-1000.0,0.00021643,2]
[367931774,1750971038738,-460.0,0.00021643,2]
[367931775,1750971038747,-460.0,0.00021643,2]
[367931776,1750971038756,-460.49172932,0.00021643,2]
[367931777,1750971038765,-460.0,0.00021643,2]
[367931778,1750971038776,-460.0,0.00021643,2]
[367931779,1750971038785,-460.0,0.00021643,2]
[367931780,1750971038794,-460.0,0.00021643,2]
[367931781,1750971038803,-460.0,0.00021643,2]
[367931782,1750971038812,-460.0,0.00021643,2]
[367931783,1750971038822,-460.0,0.00021643,2]
[367931784,1750971038831,-460.0,0.00021643,2]
[367931785,1750971038840,-460.0,0.00021643,2]
[367931786,1750971038854,-460.0,0.00021643,2]
[367931787,1750971038864,-460.0,0.00021643,2]
[367931788,1750971038873,-460.0,0.00021643,2]
[367931789,1750971038882,-460.0,0.00021643,2]
[367931790,1750971038891,-460.0,0.00021643,2]
[367931791,1750971038901,-460.0,0.00021643,2]
[367931792,1750971038910,-377.52176194,0.00021643,2]
[367931793,1750971038920,-460.0,0.00021643,2]